[Event "*** SCC Grand Prix: Titled Tuesday Blitz"]
[Site "Chess.com"]
[Date "2020.06.09"]
[Round "5"]
[White "Munkhzul_Turmunkh"]
[Black "Guenplen"]
[Result "0-1"]
[WhiteElo "2599"]
[BlackElo "2900"]
[TimeControl "180+1"]
[EndTime "9:56:42 PDT"]
[Termination "Guenplen won by resignation"]

1. e4 {[%clk 0:03:00.9]} 1... c5 {[%clk 0:02:59.9]} 2. Nf3 {[%clk 0:03:01]} 2...
e6 {[%clk 0:03:00.2]} 3. d4 {[%clk 0:03:00.1]} 3... cxd4 {[%clk 0:03:01.1]} 4.
Nxd4 {[%clk 0:03:00.7]} 4... Nf6 {[%clk 0:03:01.5]} 5. Nc3 {[%clk 0:03:00.1]}
5... Nc6 {[%clk 0:03:01.9]} 6. Ndb5 {[%clk 0:02:58.5]} 6... Bc5 {[%clk
0:03:01.2]} 7. Nd6+ {[%clk 0:02:47.9]} 7... Ke7 {[%clk 0:03:00.7]} 8. Bf4 {[%clk
0:02:40.8]} 8... e5 {[%clk 0:03:00.9]} 9. Nf5+ {[%clk 0:02:38.9]} 9... Kf8
{[%clk 0:03:00.9]} 10. Bg5 {[%clk 0:02:35.7]} 10... d6 {[%clk 0:03:01]} 11. Ne3
{[%clk 0:02:27.9]} 11... h6 {[%clk 0:02:59.2]} 12. Bxf6 {[%clk 0:02:22.3]} 12...
Qxf6 {[%clk 0:03:00.1]} 13. Ncd5 {[%clk 0:02:22.4]} 13... Qd8 {[%clk 0:02:58.6]}
14. Be2 {[%clk 0:02:07.3]} 14... g6 {[%clk 0:02:48.6]} 15. O-O {[%clk
0:02:00.5]} 15... h5 {[%clk 0:02:39.3]} 16. c3 {[%clk 0:01:54]} 16... a6 {[%clk
0:02:38.1]} 17. b4 {[%clk 0:01:47.3]} 17... Ba7 {[%clk 0:02:37.7]} 18. a4 {[%clk
0:01:40.4]} 18... Kg7 {[%clk 0:02:35.4]} 19. b5 {[%clk 0:01:33.5]} 19... Ne7
{[%clk 0:02:29.4]} 20. Bc4 {[%clk 0:01:27.8]} 20... Bc5 {[%clk 0:02:23.1]} 21.
bxa6 {[%clk 0:01:25.8]} 21... bxa6 {[%clk 0:02:21.5]} 22. Rb1 {[%clk 0:01:23.3]}
22... Nxd5 {[%clk 0:01:43.4]} 23. Bxd5 {[%clk 0:01:20.6]} 23... Ra7 {[%clk
0:01:42.3]} 24. Qd3 {[%clk 0:01:08.1]} 24... Bd7 {[%clk 0:01:35.7]} 25. Qc4
{[%clk 0:00:58]} 25... Rf8 {[%clk 0:01:31.6]} 26. Kh1 {[%clk 0:00:51.5]} 26...
Qg5 {[%clk 0:01:26.8]} 27. Rfe1 {[%clk 0:00:45.2]} 27... h4 {[%clk 0:01:24.5]}
28. h3 {[%clk 0:00:38.9]} 28... Qf4 {[%clk 0:01:22]} 29. Rb2 {[%clk 0:00:29.3]}
29... Rc8 {[%clk 0:01:16.3]} 30. Qb3 {[%clk 0:00:27.2]} 30... Rac7 {[%clk
0:01:11.3]} 31. a5 {[%clk 0:00:25.2]} 31... Ba7 {[%clk 0:01:02.1]} 32. c4 {[%clk
0:00:25]} 32... Rb8 {[%clk 0:01:01]} 33. Qa2 {[%clk 0:00:23.5]} 33... Rxb2
{[%clk 0:00:53.6]} 34. Qxb2 {[%clk 0:00:24.4]} 34... Bd4 {[%clk 0:00:53]} 35.
Qb3 {[%clk 0:00:21.7]} 35... Qxf2 {[%clk 0:00:50.4]} 36. Rf1 {[%clk 0:00:15.8]}
36... Qxe3 {[%clk 0:00:45.4]} 37. Qxe3 {[%clk 0:00:16.7]} 37... Bxe3 {[%clk
0:00:45.8]} 38. Rxf7+ {[%clk 0:00:15.7]} 38... Kh6 {[%clk 0:00:46]} 39. Be6
{[%clk 0:00:14.3]} 39... Rb7 {[%clk 0:00:33.2]} 40. Bxd7 {[%clk 0:00:02.8]}
40... Rb1+ {[%clk 0:00:32.3]} 41. Kh2 {[%clk 0:00:02.9]} 41... Bg1+ {[%clk
0:00:32.2]} 42. Kh1 {[%clk 0:00:03.1]} 42... Bf2+ {[%clk 0:00:32.7]} 0-1

[Event "*** SCC Grand Prix: Titled Tuesday Blitz"]
[Site "Chess.com"]
[Date "2020.06.09"]
[Round "5"]
[White "Semetey"]
[Black "VitaliyBernadskiy"]
[Result "0-1"]
[WhiteElo "2527"]
[BlackElo "2702"]
[TimeControl "180+1"]
[EndTime "9:56:42 PDT"]
[Termination "VitaliyBernadskiy won on time"]

1. d4 {[%clk 0:03:00.9]} 1... d5 {[%clk 0:02:59.8]} 2. Nc3 {[%clk 0:03:01.2]}
2... Nf6 {[%clk 0:02:58]} 3. Bf4 {[%clk 0:03:01.5]} 3... a6 {[%clk 0:02:57.9]}
4. Nf3 {[%clk 0:02:50.1]} 4... e6 {[%clk 0:02:57.1]} 5. a3 {[%clk 0:02:47.4]}
5... c5 {[%clk 0:02:56.7]} 6. e3 {[%clk 0:02:46.8]} 6... b5 {[%clk 0:02:56.4]}
7. Ne5 {[%clk 0:02:45.5]} 7... Bb7 {[%clk 0:02:55.5]} 8. g4 {[%clk 0:02:41.6]}
8... h6 {[%clk 0:02:49.7]} 9. Bg2 {[%clk 0:02:28.7]} 9... Nbd7 {[%clk
0:02:46.1]} 10. h4 {[%clk 0:02:19.3]} 10... Nxe5 {[%clk 0:02:45.9]} 11. Bxe5
{[%clk 0:02:18]} 11... Nd7 {[%clk 0:02:37.7]} 12. Bg3 {[%clk 0:02:16.3]} 12...
Rc8 {[%clk 0:02:34.2]} 13. Ne2 {[%clk 0:02:11.8]} 13... Nb6 {[%clk 0:02:31.6]}
14. c3 {[%clk 0:02:11]} 14... Bd6 {[%clk 0:02:28.8]} 15. b3 {[%clk 0:01:24.8]}
15... O-O {[%clk 0:02:15.9]} 16. g5 {[%clk 0:01:12.8]} 16... h5 {[%clk
0:02:07.4]} 17. O-O {[%clk 0:00:42.4]} 17... g6 {[%clk 0:02:05.5]} 18. Bxd6
{[%clk 0:00:29.6]} 18... Qxd6 {[%clk 0:02:06.4]} 19. f4 {[%clk 0:00:29.8]} 19...
a5 {[%clk 0:02:00.2]} 20. Bf3 {[%clk 0:00:19.8]} 20... a4 {[%clk 0:01:57.2]} 21.
b4 {[%clk 0:00:17.1]} 21... cxb4 {[%clk 0:01:55.7]} 22. cxb4 {[%clk 0:00:16.2]}
22... Rc4 {[%clk 0:01:49.9]} 23. Qd3 {[%clk 0:00:15.2]} 23... Rfc8 {[%clk
0:01:48.4]} 24. Rfc1 {[%clk 0:00:15.6]} 24... Bc6 {[%clk 0:01:44.1]} 25. Kf2
{[%clk 0:00:15]} 25... Rc7 {[%clk 0:01:44.2]} 26. Rc3 {[%clk 0:00:14.1]} 26...
Nc8 {[%clk 0:01:43.7]} 27. Rac1 {[%clk 0:00:14.1]} 27... Ne7 {[%clk 0:01:43.6]}
28. Ng3 {[%clk 0:00:13]} 28... Rc8 {[%clk 0:01:42.2]} 29. Be2 {[%clk 0:00:12.8]}
29... Qc7 {[%clk 0:01:41.1]} 30. Qd2 {[%clk 0:00:12.8]} 30... Bb7 {[%clk
0:01:39.6]} 31. Bxc4 {[%clk 0:00:11.9]} 31... dxc4 {[%clk 0:01:40.5]} 32. e4
{[%clk 0:00:11.9]} 32... Rd8 {[%clk 0:01:39.7]} 33. Rd1 {[%clk 0:00:11.9]} 33...
Qc6 {[%clk 0:01:18.4]} 34. Qe3 {[%clk 0:00:11.8]} 34... Rd7 {[%clk 0:01:17.2]}
35. Rd2 {[%clk 0:00:11.4]} 35... Nc8 {[%clk 0:01:13.3]} 36. Kg1 {[%clk
0:00:07.4]} 36... Nd6 {[%clk 0:01:13.4]} 37. Re2 {[%clk 0:00:06.4]} 37... Qb6
{[%clk 0:01:07.4]} 38. Kh2 {[%clk 0:00:06.5]} 38... Ne8 {[%clk 0:01:06.8]} 39.
Rd2 {[%clk 0:00:06.6]} 39... Qc6 {[%clk 0:00:59.3]} 40. Rf2 {[%clk 0:00:05.7]}
40... f5 {[%clk 0:00:59]} 41. exf5 {[%clk 0:00:05.1]} 41... gxf5 {[%clk
0:00:51]} 42. Qe2 {[%clk 0:00:04.4]} 42... Rxd4 {[%clk 0:00:47.8]} 43. Qxh5
{[%clk 0:00:04]} 43... Rxf4 {[%clk 0:00:43.1]} 44. Qg6+ {[%clk 0:00:02.1]} 44...
Ng7 {[%clk 0:00:42.8]} 45. Rcc2 {[%clk 0:00:01]} 45... Rxh4+ {[%clk 0:00:42.1]}
0-1

[Event "*** SCC Grand Prix: Titled Tuesday Blitz"]
[Site "Chess.com"]
[Date "2020.06.09"]
[Round "5"]
[White "Orest_Vovk"]
[Black "Pavel_Mir"]
[Result "1-0"]
[WhiteElo "2456"]
[BlackElo "2300"]
[TimeControl "180+1"]
[EndTime "9:56:42 PDT"]
[Termination "Orest_Vovk won by resignation"]

1. h4 {[%clk 0:02:53.8]} 1... e5 {[%clk 0:02:59.4]} 2. h5 {[%clk 0:02:53.3]}
2... d5 {[%clk 0:02:59.8]} 3. h6 {[%clk 0:02:52.9]} 3... Nxh6 {[%clk 0:02:59.3]}
4. d4 {[%clk 0:02:52.7]} 4... e4 {[%clk 0:02:56.5]} 5. Bxh6 {[%clk 0:02:52.4]}
5... gxh6 {[%clk 0:02:56.7]} 6. e3 {[%clk 0:02:52.2]} 6... Nc6 {[%clk
0:02:54.2]} 7. c4 {[%clk 0:02:52]} 7... Nb4 {[%clk 0:02:20.4]} 8. Qb3 {[%clk
0:02:49.3]} 8... c6 {[%clk 0:01:57.2]} 9. a3 {[%clk 0:02:46.1]} 9... Qa5 {[%clk
0:01:52.1]} 10. Nc3 {[%clk 0:02:40.2]} 10... Nd3+ {[%clk 0:01:42.9]} 11. Bxd3
{[%clk 0:02:25]} 11... exd3 {[%clk 0:01:43.5]} 12. cxd5 {[%clk 0:02:23.9]} 12...
Rg8 {[%clk 0:01:38.8]} 13. g3 {[%clk 0:02:09.4]} 13... c5 {[%clk 0:01:19.4]} 14.
Qb5+ {[%clk 0:02:01.7]} 14... Qxb5 {[%clk 0:01:19.4]} 15. Nxb5 {[%clk
0:02:02.6]} 15... Kd8 {[%clk 0:01:18.2]} 16. dxc5 {[%clk 0:01:55.5]} 16... Bxc5
{[%clk 0:01:18]} 17. Rxh6 {[%clk 0:01:52.2]} 17... a6 {[%clk 0:01:12.8]} 18. Nd6
{[%clk 0:01:39]} 18... Bxd6 {[%clk 0:00:58.9]} 19. Rxd6+ {[%clk 0:01:30]} 19...
Bd7 {[%clk 0:00:59.4]} 20. Nf3 {[%clk 0:01:20.4]} 20... Ke7 {[%clk 0:00:58.3]}
21. Rh6 {[%clk 0:01:14.4]} 21... Rac8 {[%clk 0:00:58.4]} 22. Nd4 {[%clk
0:01:12.2]} 22... Rg6 {[%clk 0:00:51.4]} 23. Rxh7 {[%clk 0:01:08.5]} 23... Rb6
{[%clk 0:00:51.4]} 24. b4 {[%clk 0:01:04.8]} 24... a5 {[%clk 0:00:51.8]} 25. Rb1
{[%clk 0:00:59.8]} 25... axb4 {[%clk 0:00:50.3]} 26. axb4 {[%clk 0:00:59.9]}
26... Ra6 {[%clk 0:00:49.9]} 27. Kd2 {[%clk 0:00:48.1]} 27... Ra3 {[%clk
0:00:41.8]} 28. Rb3 {[%clk 0:00:31.2]} 28... Rxb3 {[%clk 0:00:19.9]} 29. Nxb3
{[%clk 0:00:30.5]} 29... Rc2+ {[%clk 0:00:20.5]} 30. Kxd3 {[%clk 0:00:29.7]}
30... Bf5+ {[%clk 0:00:21.1]} 31. e4 {[%clk 0:00:29.9]} 31... Bxh7 {[%clk
0:00:20.7]} 32. Kxc2 {[%clk 0:00:29.2]} 32... Bxe4+ {[%clk 0:00:21.3]} 33. Kc3
{[%clk 0:00:29.1]} 33... Bxd5 {[%clk 0:00:21.8]} 34. Nc5 {[%clk 0:00:27.1]}
34... b6 {[%clk 0:00:21.2]} 35. Nd3 {[%clk 0:00:26]} 35... Kd6 {[%clk
0:00:20.4]} 36. Kd4 {[%clk 0:00:25.7]} 36... Bf3 {[%clk 0:00:20.6]} 37. Ne5
{[%clk 0:00:24]} 37... Bd5 {[%clk 0:00:18.4]} 38. Nc4+ {[%clk 0:00:21]} 38...
Kc6 {[%clk 0:00:18.7]} 39. b5+ {[%clk 0:00:18.8]} 39... Kxb5 {[%clk 0:00:16]}
40. Kxd5 {[%clk 0:00:19.7]} 40... Ka4 {[%clk 0:00:16.5]} 41. Nxb6+ {[%clk
0:00:18.9]} 41... Ka5 {[%clk 0:00:15.4]} 42. Ke5 {[%clk 0:00:18.8]} 42... Kxb6
{[%clk 0:00:15.7]} 43. Kf6 {[%clk 0:00:18.9]} 43... Kc7 {[%clk 0:00:16.5]} 44.
Kxf7 {[%clk 0:00:19.1]} 1-0

[Event "*** SCC Grand Prix: Titled Tuesday Blitz"]
[Site "Chess.com"]
[Date "2020.06.09"]
[Round "5"]
[White "Panterov"]
[Black "Susal_De_Silva"]
[Result "1-0"]
[WhiteElo "2159"]
[BlackElo "2358"]
[TimeControl "180+1"]
[EndTime "9:56:42 PDT"]
[Termination "Panterov won on time"]

1. e4 {[%clk 0:03:00.9]} 1... e5 {[%clk 0:02:59.8]} 2. Nf3 {[%clk 0:03:01]} 2...
Nc6 {[%clk 0:02:59.8]} 3. d4 {[%clk 0:03:01.6]} 3... exd4 {[%clk 0:02:59.7]} 4.
Nxd4 {[%clk 0:03:02.5]} 4... Bc5 {[%clk 0:03:00]} 5. Nf5 {[%clk 0:03:02.6]} 5...
g6 {[%clk 0:02:55.2]} 6. Ne3 {[%clk 0:03:02]} 6... Nf6 {[%clk 0:02:49.3]} 7. Nc3
{[%clk 0:03:01.5]} 7... O-O {[%clk 0:02:49.1]} 8. Bd3 {[%clk 0:03:01.5]} 8... d6
{[%clk 0:02:44.1]} 9. O-O {[%clk 0:03:01]} 9... Ne5 {[%clk 0:02:39.8]} 10. Ned5
{[%clk 0:02:53.5]} 10... Nxd5 {[%clk 0:02:33.1]} 11. Nxd5 {[%clk 0:02:54.4]}
11... c6 {[%clk 0:02:26.2]} 12. Ne3 {[%clk 0:02:46.4]} 12... Qh4 {[%clk
0:02:23.1]} 13. Kh1 {[%clk 0:01:49.5]} 13... f5 {[%clk 0:02:16.3]} 14. f4 {[%clk
0:01:42.8]} 14... Bxe3 {[%clk 0:01:36.6]} 15. Bxe3 {[%clk 0:01:40.4]} 15... Ng4
{[%clk 0:01:34.5]} 16. Bg1 {[%clk 0:01:40.5]} 16... fxe4 {[%clk 0:01:18.2]} 17.
Bxe4 {[%clk 0:01:40.3]} 17... d5 {[%clk 0:01:18.4]} 18. Bf3 {[%clk 0:01:27.3]}
18... Nf6 {[%clk 0:01:16.4]} 19. g3 {[%clk 0:01:24]} 19... Qh6 {[%clk
0:01:10.8]} 20. Bc5 {[%clk 0:01:04.7]} 20... Re8 {[%clk 0:01:07.6]} 21. Qd4
{[%clk 0:01:03.1]} 21... Ne4 {[%clk 0:00:45.6]} 22. Bxe4 {[%clk 0:00:53.4]}
22... Rxe4 {[%clk 0:00:40.3]} 23. Qf6 {[%clk 0:00:48.4]} 23... Bf5 {[%clk
0:00:37]} 24. Rae1 {[%clk 0:00:46.1]} 24... Rae8 {[%clk 0:00:35]} 25. Rxe4
{[%clk 0:00:44.5]} 25... Bxe4+ {[%clk 0:00:35.9]} 26. Kg1 {[%clk 0:00:43.9]}
26... Qh3 {[%clk 0:00:32.2]} 27. Rf2 {[%clk 0:00:35.6]} 27... Bf3 {[%clk
0:00:16.7]} 28. Be7 {[%clk 0:00:19.2]} 28... Be4 {[%clk 0:00:10.4]} 29. c3
{[%clk 0:00:17.4]} 29... Qd7 {[%clk 0:00:10.7]} 30. Bc5 {[%clk 0:00:15.6]} 30...
Bf5 {[%clk 0:00:09.8]} 31. Bd4 {[%clk 0:00:13.4]} 31... Re1+ {[%clk 0:00:06.2]}
32. Rf1 {[%clk 0:00:13.6]} 32... Rxf1+ {[%clk 0:00:04.2]} 33. Kxf1 {[%clk
0:00:14.3]} 33... Bh3+ {[%clk 0:00:03.1]} 34. Kg1 {[%clk 0:00:14.4]} 1-0

[Event "*** SCC Grand Prix: Titled Tuesday Blitz"]
[Site "Chess.com"]
[Date "2020.06.09"]
[Round "5"]
[White "Vision_64"]
[Black "kuba2006"]
[Result "1-0"]
[WhiteElo "2146"]
[BlackElo "2311"]
[TimeControl "180+1"]
[EndTime "9:56:46 PDT"]
[Termination "Vision_64 won on time"]

1. e4 {[%clk 0:03:00.9]} 1... Nf6 {[%clk 0:02:59.1]} 2. e5 {[%clk 0:02:59.4]}
2... Nd5 {[%clk 0:02:59.3]} 3. c4 {[%clk 0:02:59.7]} 3... Nb6 {[%clk 0:02:59.4]}
4. c5 {[%clk 0:03:00.3]} 4... Nd5 {[%clk 0:02:59.4]} 5. Nc3 {[%clk 0:03:01]}
5... Nxc3 {[%clk 0:02:55.3]} 6. dxc3 {[%clk 0:02:56.7]} 6... d6 {[%clk
0:02:34.2]} 7. cxd6 {[%clk 0:02:45.5]} 7... exd6 {[%clk 0:02:35.1]} 8. Bc4
{[%clk 0:02:37.6]} 8... Nc6 {[%clk 0:02:25.7]} 9. exd6 {[%clk 0:02:10.6]} 9...
Bxd6 {[%clk 0:02:26.6]} 10. Nf3 {[%clk 0:02:02.2]} 10... O-O {[%clk 0:02:25.1]}
11. O-O {[%clk 0:02:02.2]} 11... Bg4 {[%clk 0:02:23.8]} 12. h3 {[%clk
0:02:00.6]} 12... Bh5 {[%clk 0:02:17.9]} 13. Qd5 {[%clk 0:01:37]} 13... Bxf3
{[%clk 0:01:57.5]} 14. Qxf3 {[%clk 0:01:37.9]} 14... Ne5 {[%clk 0:01:57.1]} 15.
Qe2 {[%clk 0:01:38.1]} 15... Re8 {[%clk 0:01:54.5]} 16. Be3 {[%clk 0:01:36.9]}
16... Nxc4 {[%clk 0:01:40.2]} 17. Qxc4 {[%clk 0:01:36.7]} 17... Qf6 {[%clk
0:01:39.8]} 18. Qd4 {[%clk 0:01:29.5]} 18... Be5 {[%clk 0:01:36.1]} 19. Qg4
{[%clk 0:01:26.7]} 19... g6 {[%clk 0:01:29]} 20. Rad1 {[%clk 0:01:24.7]} 20...
Rad8 {[%clk 0:01:27.3]} 21. Rxd8 {[%clk 0:01:12.9]} 21... Rxd8 {[%clk
0:01:28.2]} 22. Rd1 {[%clk 0:01:11.9]} 22... Bd6 {[%clk 0:01:02.2]} 23. Bg5
{[%clk 0:01:05.3]} 23... Bh2+ {[%clk 0:00:14.3]} 24. Kxh2 {[%clk 0:00:58.4]}
24... Qe5+ {[%clk 0:00:14.5]} 25. Bf4 {[%clk 0:00:56.5]} 25... Qe7 {[%clk
0:00:13.7]} 26. Rxd8+ {[%clk 0:00:52.9]} 26... Qxd8 {[%clk 0:00:14.6]} 27. Be5
{[%clk 0:00:49.3]} 27... c6 {[%clk 0:00:09]} 28. Qd4 {[%clk 0:00:41.9]} 28...
Qe8 {[%clk 0:00:05.8]} 29. Bh8 {[%clk 0:00:36.7]} 29... Qf8 {[%clk 0:00:05]} 30.
Bf6 {[%clk 0:00:35.9]} 30... Qb8+ {[%clk 0:00:03.3]} 31. g3 {[%clk 0:00:34.8]}
31... Kf8 {[%clk 0:00:03.1]} 32. Qh4 {[%clk 0:00:31.8]} 32... Kg8 {[%clk
0:00:02.3]} 33. Qh6 {[%clk 0:00:30.1]} 33... Qf8 {[%clk 0:00:02.4]} 34. Qxf8+
{[%clk 0:00:29.1]} 34... Kxf8 {[%clk 0:00:03.3]} 35. Kg2 {[%clk 0:00:29.6]}
35... Ke8 {[%clk 0:00:03.6]} 36. Kf3 {[%clk 0:00:29.8]} 36... Kd7 {[%clk
0:00:04]} 37. Ke4 {[%clk 0:00:30.1]} 37... Ke6 {[%clk 0:00:04.3]} 38. Bd4 {[%clk
0:00:28.6]} 38... h6 {[%clk 0:00:04.1]} 39. g4 {[%clk 0:00:28.4]} 39... b6
{[%clk 0:00:03.3]} 40. h4 {[%clk 0:00:26.7]} 40... Kd6 {[%clk 0:00:02.2]} 41. h5
{[%clk 0:00:26.1]} 41... g5 {[%clk 0:00:02.3]} 42. Bg7 {[%clk 0:00:25.7]} 1-0

[Event "*** SCC Grand Prix: Titled Tuesday Blitz"]
[Site "Chess.com"]
[Date "2020.06.09"]
[Round "5"]
[White "Salem-AR"]
[Black "EvgenyRomanov"]
[Result "1-0"]
[WhiteElo "2971"]
[BlackElo "2664"]
[TimeControl "180+1"]
[EndTime "9:56:47 PDT"]
[Termination "Salem-AR won on time"]

1. d4 {[%clk 0:03:00.9]} 1... d5 {[%clk 0:02:59.4]} 2. c4 {[%clk 0:03:01.6]}
2... dxc4 {[%clk 0:02:59.7]} 3. Nf3 {[%clk 0:03:01.9]} 3... Nf6 {[%clk
0:02:59.4]} 4. Nc3 {[%clk 0:03:02.2]} 4... a6 {[%clk 0:02:52]} 5. e4 {[%clk
0:03:02.1]} 5... b5 {[%clk 0:02:51.7]} 6. e5 {[%clk 0:03:02.8]} 6... Nd5 {[%clk
0:02:51.7]} 7. a4 {[%clk 0:03:03.7]} 7... e6 {[%clk 0:02:51.4]} 8. axb5 {[%clk
0:03:04.4]} 8... Nb6 {[%clk 0:02:51.1]} 9. Be2 {[%clk 0:03:03.8]} 9... Bb7
{[%clk 0:02:49]} 10. bxa6 {[%clk 0:03:04.1]} 10... Nxa6 {[%clk 0:02:46.9]} 11.
O-O {[%clk 0:03:03.4]} 11... Be7 {[%clk 0:02:41.3]} 12. Qd2 {[%clk 0:03:03.4]}
12... O-O {[%clk 0:02:38.8]} 13. Qf4 {[%clk 0:03:03.4]} 13... Nb4 {[%clk
0:02:32.3]} 14. Rxa8 {[%clk 0:03:04.2]} 14... Bxa8 {[%clk 0:02:27.7]} 15. Qg4
{[%clk 0:02:45.7]} 15... Kh8 {[%clk 0:02:17.2]} 16. Ng5 {[%clk 0:02:15.1]} 16...
Nd3 {[%clk 0:02:07.5]} 17. Bxd3 {[%clk 0:02:01.2]} 17... cxd3 {[%clk 0:02:07.4]}
18. Rd1 {[%clk 0:02:01.9]} 18... Nc4 {[%clk 0:01:48.9]} 19. Rxd3 {[%clk
0:00:49.3]} 19... Nxe5 {[%clk 0:01:33.4]} 20. Qh5 {[%clk 0:00:48.2]} 20... h6
{[%clk 0:01:13.5]} 21. Nxe6 {[%clk 0:00:29.6]} 21... fxe6 {[%clk 0:00:52.3]} 22.
Qxe5 {[%clk 0:00:30.2]} 22... Bf6 {[%clk 0:00:40.6]} 23. Qh5 {[%clk 0:00:21.1]}
23... Qe8 {[%clk 0:00:33.9]} 24. Qg4 {[%clk 0:00:20.7]} 24... Qc6 {[%clk
0:00:24.8]} 25. Rh3 {[%clk 0:00:10.8]} 25... Kh7 {[%clk 0:00:24.7]} 26. Rg3
{[%clk 0:00:09.9]} 26... Qe8 {[%clk 0:00:13.9]} 27. Be3 {[%clk 0:00:10.1]} 27...
Qf7 {[%clk 0:00:10.5]} 28. h3 {[%clk 0:00:08]} 28... e5 {[%clk 0:00:10]} 29. Ne2
{[%clk 0:00:05.1]} 29... exd4 {[%clk 0:00:09.4]} 30. Nxd4 {[%clk 0:00:05.2]}
30... Qd5 {[%clk 0:00:08.2]} 31. Nf5 {[%clk 0:00:04.4]} 31... Be5 {[%clk
0:00:03.2]} 32. Bf4 {[%clk 0:00:03.1]} 1-0

[Event "*** SCC Grand Prix: Titled Tuesday Blitz"]
[Site "Chess.com"]
[Date "2020.06.09"]
[Round "5"]
[White "BocharovD"]
[Black "rubhani"]
[Result "1-0"]
[WhiteElo "2754"]
[BlackElo "2556"]
[TimeControl "180+1"]
[EndTime "9:56:48 PDT"]
[Termination "BocharovD won on time"]

1. c4 {[%clk 0:03:00.9]} 1... e5 {[%clk 0:02:59.2]} 2. g3 {[%clk 0:02:59.8]}
2... Nc6 {[%clk 0:02:59]} 3. Bg2 {[%clk 0:02:59.8]} 3... Bc5 {[%clk 0:02:59]} 4.
Nc3 {[%clk 0:02:58.7]} 4... d6 {[%clk 0:02:59.1]} 5. Nf3 {[%clk 0:02:57.6]} 5...
h5 {[%clk 0:02:57.3]} 6. h4 {[%clk 0:02:55.7]} 6... Bg4 {[%clk 0:02:56.7]} 7. d3
{[%clk 0:02:48.4]} 7... a6 {[%clk 0:02:54.6]} 8. a3 {[%clk 0:02:44.8]} 8... Nge7
{[%clk 0:02:51]} 9. b4 {[%clk 0:02:44.5]} 9... Ba7 {[%clk 0:02:50.1]} 10. O-O
{[%clk 0:02:43.8]} 10... O-O {[%clk 0:02:12.8]} 11. Nh2 {[%clk 0:02:37.3]} 11...
f5 {[%clk 0:02:00.3]} 12. Bg5 {[%clk 0:02:25.3]} 12... Qd7 {[%clk 0:01:59]} 13.
Qd2 {[%clk 0:02:15.2]} 13... Ng6 {[%clk 0:01:39.7]} 14. Nd5 {[%clk 0:02:13.6]}
14... Nd4 {[%clk 0:01:33.4]} 15. Nxg4 {[%clk 0:01:41.9]} 15... fxg4 {[%clk
0:01:02]} 16. Be4 {[%clk 0:01:41.2]} 16... Nf5 {[%clk 0:01:02.1]} 17. Ne3 {[%clk
0:01:40.4]} 17... Nge7 {[%clk 0:00:50.3]} 18. Bxe7 {[%clk 0:01:24.3]} 18... Nxe7
{[%clk 0:00:46.2]} 19. Bxb7 {[%clk 0:01:22.1]} 19... Rab8 {[%clk 0:00:44.2]} 20.
Bg2 {[%clk 0:01:21.3]} 20... c6 {[%clk 0:00:35.9]} 21. Rac1 {[%clk 0:01:11.4]}
21... Rf6 {[%clk 0:00:30.8]} 22. c5 {[%clk 0:00:40.3]} 22... d5 {[%clk
0:00:30.4]} 23. f3 {[%clk 0:00:40.8]} 23... Rbf8 {[%clk 0:00:22.8]} 24. fxg4
{[%clk 0:00:40.7]} 24... hxg4 {[%clk 0:00:23.3]} 25. Rxf6 {[%clk 0:00:40]} 25...
Rxf6 {[%clk 0:00:23.5]} 26. Rf1 {[%clk 0:00:39.7]} 26... Rxf1+ {[%clk
0:00:18.1]} 27. Nxf1 {[%clk 0:00:37.1]} 27... Bb8 {[%clk 0:00:17.6]} 28. Qg5
{[%clk 0:00:36.4]} 28... Qe6 {[%clk 0:00:17]} 29. Ne3 {[%clk 0:00:32.6]} 29...
e4 {[%clk 0:00:14.5]} 30. dxe4 {[%clk 0:00:25.3]} 30... d4 {[%clk 0:00:11.8]}
31. Nf5 {[%clk 0:00:22.7]} 31... Nxf5 {[%clk 0:00:05.7]} 32. Qxf5 {[%clk
0:00:21.5]} 32... Qe8 {[%clk 0:00:02.5]} 33. e5 {[%clk 0:00:18.6]} 33... Bxe5
{[%clk 0:00:02.5]} 34. Bxc6 {[%clk 0:00:17.4]} 34... Bxg3 {[%clk 0:00:02.6]} 35.
Bxe8 {[%clk 0:00:16.5]} 1-0

[Event "*** SCC Grand Prix: Titled Tuesday Blitz"]
[Site "Chess.com"]
[Date "2020.06.09"]
[Round "5"]
[White "Gloomy_Wanderer"]
[Black "topotun"]
[Result "1/2-1/2"]
[WhiteElo "2783"]
[BlackElo "2615"]
[TimeControl "180+1"]
[EndTime "9:56:49 PDT"]
[Termination "Game drawn by repetition"]

1. d4 {[%clk 0:03:00.2]} 1... Nf6 {[%clk 0:02:59.8]} 2. Nf3 {[%clk 0:03:00]}
2... c5 {[%clk 0:02:57.5]} 3. d5 {[%clk 0:02:59.9]} 3... d6 {[%clk 0:02:57.6]}
4. Nc3 {[%clk 0:02:59.8]} 4... g6 {[%clk 0:02:57.7]} 5. e4 {[%clk 0:03:00.1]}
5... Bg7 {[%clk 0:02:58.3]} 6. Bb5+ {[%clk 0:03:00.1]} 6... Bd7 {[%clk
0:02:58.6]} 7. a4 {[%clk 0:03:00.5]} 7... Bxb5 {[%clk 0:02:58.9]} 8. axb5 {[%clk
0:03:00.3]} 8... O-O {[%clk 0:02:59.4]} 9. O-O {[%clk 0:03:00.5]} 9... Nbd7
{[%clk 0:02:59.4]} 10. Re1 {[%clk 0:02:58.5]} 10... Nb6 {[%clk 0:02:59.5]} 11.
Na4 {[%clk 0:02:43.4]} 11... Ne8 {[%clk 0:02:47.6]} 12. c3 {[%clk 0:02:32.9]}
12... Nxa4 {[%clk 0:02:12.4]} 13. Qxa4 {[%clk 0:02:28.5]} 13... Nc7 {[%clk
0:02:12.8]} 14. Bf4 {[%clk 0:02:19.8]} 14... Qd7 {[%clk 0:02:05.1]} 15. c4
{[%clk 0:02:08.4]} 15... Bxb2 {[%clk 0:01:47.2]} 16. Ra2 {[%clk 0:02:02]} 16...
Bc3 {[%clk 0:01:46.1]} 17. Re3 {[%clk 0:01:54.7]} 17... Bd4 {[%clk 0:01:26.9]}
18. Ree2 {[%clk 0:01:37.4]} 18... f6 {[%clk 0:01:10.8]} 19. Qd1 {[%clk 0:01:23]}
19... e5 {[%clk 0:01:10]} 20. Nxd4 {[%clk 0:00:50.4]} 20... cxd4 {[%clk
0:01:03.3]} 21. Bd2 {[%clk 0:00:49.6]} 21... Rfc8 {[%clk 0:00:54.6]} 22. Bb4
{[%clk 0:00:44.8]} 22... b6 {[%clk 0:00:39.6]} 23. f4 {[%clk 0:00:40.9]} 23...
a6 {[%clk 0:00:37.7]} 24. fxe5 {[%clk 0:00:25.5]} 24... fxe5 {[%clk 0:00:38.6]}
25. bxa6 {[%clk 0:00:25.6]} 25... Nxa6 {[%clk 0:00:37.1]} 26. Qb3 {[%clk
0:00:26.3]} 26... Nxb4 {[%clk 0:00:35.2]} 27. Qxb4 {[%clk 0:00:27.2]} 27... Qc7
{[%clk 0:00:35.8]} 28. h3 {[%clk 0:00:13.6]} 28... Rxa2 {[%clk 0:00:28.6]} 29.
Rxa2 {[%clk 0:00:13.6]} 29... Qxc4 {[%clk 0:00:29.1]} 30. Qxd6 {[%clk
0:00:12.3]} 30... Qxa2 {[%clk 0:00:20.5]} 31. Qe6+ {[%clk 0:00:12.4]} 31... Kg7
{[%clk 0:00:20.6]} 32. Qxe5+ {[%clk 0:00:10.7]} 32... Kh6 {[%clk 0:00:20.9]} 33.
Qf4+ {[%clk 0:00:10.8]} 33... Kh5 {[%clk 0:00:17.5]} 34. Qg4+ {[%clk 0:00:08.2]}
34... Kh6 {[%clk 0:00:17.4]} 35. Qf4+ {[%clk 0:00:08.4]} 35... Kh5 {[%clk
0:00:15.8]} 36. Qg4+ {[%clk 0:00:04.9]} 36... Kh6 {[%clk 0:00:14.6]} 37. Qh4+
{[%clk 0:00:05.4]} 37... Kg7 {[%clk 0:00:14.6]} 38. Qe7+ {[%clk 0:00:06.3]}
38... Kh6 {[%clk 0:00:15]} 39. Qh4+ {[%clk 0:00:06.1]} 39... Kg7 {[%clk
0:00:15.2]} 40. Qe7+ {[%clk 0:00:06.8]} 40... Kh6 {[%clk 0:00:15.3]} 41. Qh4+
{[%clk 0:00:06.8]} 1/2-1/2